Cogmind - Beta 15 @@@ ROGUE MODE // 2025.05.12 @ 22:11:55 Player: Ulinator001 Result: Destroyed by S-10 Pest with Light Assault Rifle Performance ------------- Evolutions (0) 0 Regions Visited (3) 600 Robots Destroyed (15) 75 Value Destroyed (461) 461 Prototype IDs (0) 0 Alien Tech Used (0) 0 Bonus (60) 60 TOTAL SCORE: 1196 Bonus ------- Follower Combat Kills 60 Cogmind --------- Core Integrity 0/250 Matter 282/300 Energy 170/200 System Corruption 0% Temperature Cool (0) Movement Walking (125) Location -10/Subcaves Parts ------- > --- POWER (1) -------- Subdweller Power Source > --- PROPULSION (2) --- Aluminum Leg Titanium Leg > --- UTILITY (2) ------ Signal Interpreter Hardened Medium Armor Plating > --- WEAPON (2) ------- Subdweller Shrapnel Launcher Heavy Flail > --- INVENTORY (5) ---- Sensor Array Seismic Detector Improved Light Armor Plating Hacking Suite Subdweller Machine Gun Peak State ------------ > --- POWER ------------ Light Deuterium Engine > --- PROPULSION ------- Carbon-fiber Leg Titanium Leg > --- UTILITY ---------- Small Storage Unit Signal Interpreter > --- WEAPON ----------- High-powered Shotgun Heavy Flail > --- INVENTORY -------- Ion Engine Aluminum Leg Sensor Array Seismic Detector Hardened Medium Armor Plating Improved Light Armor Plating Hacking Suite Mining Laser [Rating: 18] Favorites ----------- Power Light Deuterium Engine Engine Light Deuterium Engine Propulsion Titanium Leg Leg Titanium Leg Utility Signal Interpreter Device Seismic Detector Storage Small Storage Unit Processor Signal Interpreter Protection Hardened Medium Armor Plating Weapon Heavy Flail Ballistic Gun High-powered Shotgun Ballistic Cannon Slug Cannon Launcher Subdweller Shrapnel Launcher Special Weapon Mining Laser Impact Weapon Heavy Flail Build | -11 -10 -10 -10 ------- Run | Yrd Mat Min Sub Slots Evolved . | . . . . Power . | . . . . Propulsion . | . . . . Utility . | . . . . Weapon . | . . . . Parts Attached 25 | 8 1 9 7 Power 5 | 1 . 2 2 Engine 5 | 1 . 2 2 Core . | . . . . Reactor . | . . . . Propulsion 6 | 2 . 4 . Treads . | . . . . Leg 6 | 2 . 4 . Wheel . | . . . . Hover . | . . . . Flight . | . . . . Utility 4 | 2 . 1 1 Device 1 | 1 . . . Storage 1 | 1 . . . Processor 1 | . . 1 . Hackware . | . . . . Protection 1 | . . . 1 Artifact . | . . . . Weapon 10 | 3 1 2 4 Energy Gun . | . . . . Energy Cannon . | . . . . Ballistic Gun 6 | 3 . 1 2 Ballistic Cannon 1 | . . . 1 Launcher 1 | . . . 1 Special Weapon 1 | . 1 . . Impact Weapon 1 | . . 1 . Slashing Weapon . | . . . . Piercing Weapon . | . . . . Special Melee Weapon . | . . . . Unidentified Prototypes . | . . . . Parts Lost 2 | . . . 2 Power . | . . . . Propulsion 1 | . . . 1 Utility . | . . . . Weapon 1 | . . . 1 Highest Loss Streak 2 | . . . 2 To Critical Strikes . | . . . . Average Backups 6 | 2 5 7 6 Power . | . 1 1 . Propulsion 1 | 1 2 1 . Utility 3 | . . 4 4 Weapon 1 | . 2 1 1 Tool/Special . | . . . . Unused Backups 6 | . . 2 4 Power 1 | . . . 1 Propulsion 2 | . . 2 . Utility 3 | . . . 3 Weapon . | . . . . Tool/Special . | . . . . Average Slot Usage (%) 99 | . 100 99 98 Engine 13 | . 14 13 14 Leg 27 | . 28 28 27 Device 2 | . 14 . . Storage 11 | . 14 14 9 Processor 11 | . . 13 14 Protection 2 | . . . 4 Ballistic Gun 15 | . 23 16 12 Impact Weapon 11 | . . 11 14 Peak Build Rating 18 | 7 8 18 18 Average Rating 14 | 5 7 15 16 On Entrance 8 | . 7 8 18 Naked Turns . | . . . . Heaviest Build 23 | 15 15 16 23 Greatest Support 32 | 20 20 32 32 Greatest Overweight (x) 1 | 1 . . . Average Overweight (x) . | . . . . Largest Inventory Capacity 8 | 8 8 8 8 Average Capacity 7 | 7 8 8 6 Most Carried 8 | 5 8 8 8 Average Carried 6 | 2 5 7 6 Final Capacity 8 | 8 8 8 5 Final Carried 8 | 5 8 8 5 Class Distribution -------------------- 100% | Mutant Dominant Class ---------------- Mutant | -10/Materials Mutant | -10/Mines Mutant | -10/Subcaves Resources | -11 -10 -10 -10 ----------- Run | Yrd Mat Min Sub Matter Collected 677 | 275 25 211 166 Remotely . | . . . . Salvage Created 457 | 50 42 90 275 Parts 32 | 5 9 5 13 Haulers Intercepted . | . . . . Recyclers Shooed . | . . . . Parts Field Recycled . | . . . . Retrieved Matter . | . . . . Parts Self-Destructed . | . . . . Prevented . | . . . . Kills | -11 -10 -10 -10 ------- Run | Yrd Mat Min Sub Combat Hostiles Destroyed 15 | . 2 5 8 Melee 3 | . . . 3 Guns 9 | . 2 5 2 Cannons 1 | . . . 1 Classes Destroyed 6 | 1 2 2 1 Tunneler 2 | 2 . . . Operator 1 | . 1 . . Swarmer 2 | . 2 . . Grunt 2 | . . 2 . Subdweller 8 | . . . 8 Assembled 3 | . . 3 . Best Kill Streak 2 | 1 1 2 2 Combat Bots Only 2 | . 1 2 2 Max Kills in Single Turn 1 | 1 1 1 1 Gunslinging . | . . . . Exploded . | . . . . Melee 1 | . . . 1 Uniques/NPCs Destroyed . | . . . . Combat | -11 -10 -10 -10 -------- Run | Yrd Mat Min Sub Hostile Shots Fired 124 | . 14 19 91 Missed 32 | . 5 . 27 Hits 92 | . 9 19 64 Projectile 92 | . 9 19 64 AOE 1 | . . . 1 Critical Strikes 2 | . . 1 1 Damage Taken 1396 | . 72 299 1025 Core 253 | . 6 51 196 Absorbed by Shields . | . . . . Core Remaining (%) 100 | 100 . . . Volleys Fired 58 | 2 9 18 29 Largest 2 | 2 2 2 1 Hottest 100 | 40 100 40 40 Shots Fired 78 | 4 15 30 29 Gun 73 | 4 13 30 26 Cannon 3 | . . . 3 Launcher . | . . . . Special 2 | . 2 . . Kinetic 76 | 4 13 30 29 Thermal 2 | . 2 . . Explosive . | . . . . Electromagnetic . | . . . . Robot Hit Streak 14 | 2 3 14 5 Robot Miss Streak 5 | 1 3 5 3 Penetration Max . | . . . . Secondary Targets . | . . . . Shots Hit Robots 81 | 3 7 25 46 Core Hits 23 | 2 3 9 9 Critical Kills 1 | . . . 1 Critical Parts Destroyed 2 | 1 . . 1 Critical Strikes 4 | 1 . . 3 Destroy 2 | 1 . . 1 Smash 2 | . . . 2 Melee Attacks 31 | . . . 31 Impact 31 | . . . 31 Slashing . | . . . . Piercing . | . . . . Sneak Attacks . | . . . . Combat Hostiles . | . . . . Follow-up Attacks . | . . . . Damage Inflicted 1793 | 37 86 272 1398 Guns 794 | 37 86 272 399 Cannons 58 | . . . 58 Explosions . | . . . . Melee 941 | . . . 941 Ramming . | . . . . Kinetic 852 | 37 86 272 457 Thermal . | . . . . Explosive . | . . . . Electromagnetic . | . . . . Impact 941 | . . . 941 Slashing . | . . . . Piercing . | . . . . Highest Corruption . | . . . . Average Corruption . | . . . . Corruption Purged . | . . . . Corruption Blocked . | . . . . Overload Shots . | . . . . Overflow Damage 95 | . . . 95 Projectiles . | . . . . Explosions . | . . . . Melee 95 | . . . 95 Knockbacks 6 | . . . 6 Impact 5 | . . . 5 Kinetic 1 | . . . 1 Secondary . | . . . . Self-Inflicted Damage . | . . . . Shots . | . . . . Rammed . | . . . . Targets Rammed . | . . . . Kicked . | . . . . Crushed . | . . . . Highest Temperature 25 | . 20 25 . Average Temperature 10 | . 10 10 . Received Heat Transfer 198 | . . 150 48 Siege Activations . | . . . . Martial Activations . | . . . . Shielding Activations . | . . . . Robots Disrupted . | . . . . Combat Hostiles . | . . . . Robots Corrupted 2 | . . . 2 Combat Hostiles 2 | . . . 2 Parts Fried 2 | . . . 2 Impact Corruptions 7 | . . . 7 Robots Melted . | . . . . Combat Hostiles . | . . . . Parts Melted . | . . . . Heat Transferred . | . . . . Parts Sabotaged . | . . . . Parts Stolen . | . . . . Parts Stripped . | . . . . Power Chain Reactions . | . . . . Alert | -11 -10 -10 -10 ------- Run | Yrd Mat Min Sub Maximum Alert Level . | . . . . Low Security (%) 100 | 100 100 100 . Level 1 . | . . . . Level 2 . | . . . . Level 3 . | . . . . Level 4 . | . . . . Level 5 . | . . . . High Security . | . . . . Max Security . | . . . . Peak Influence 61 | 5 61 48 . Initial . | . . . . Average 9 | 1 21 5 . Influence Increases 262 | 10 101 106 45 Destroy 0b10 Robot/C 120 | . 40 80 . Destroy 0b10 Robot/NC 15 | 10 5 . . Destroy Leader 30 | . 10 20 . Allied During Kill 6 | . . 6 . Disable Machine 15 | . 15 . . Destroy Structure 1 | . 1 . . Lose Combat Pursuer 75 | . 30 . 45 Influence Decreases 217 | 10 101 66 40 Entered New Map 21 | . . . 21 Time Decay 187 | 10 101 66 10 Lost Ally 9 | . . . 9 Squads Dispatched 2 | . 2 . . Investigation . | . . . . Extermination . | . . . . Reinforcement 2 | . 2 . . Assault . | . . . . Garrison . | . . . . Intercept . | . . . . Searches Triggered . | . . . . Construction Impeded . | . . . . Haulers Reinforced . | . . . . Active Scanning Responses . | . . . . Cargo Convoy Interrupts . | . . . . Stealth | -11 -10 -10 -10 --------- Run | Yrd Mat Min Sub Distress Signals . | . . . . Communications Jammed . | . . . . Distress Signals . | . . . . Times Spotted 36 | . 10 13 13 Peak Tracking Total 7 | . 3 7 6 Tactical Retreats 3 | . 1 1 1 Traps | -11 -10 -10 -10 ------- Run | Yrd Mat Min Sub Traps Triggered 1 | . . 1 . Indirectly . | . . . . Trap Hack Attempts . | . . . . Triggered . | . . . . Disarmed . | . . . . Reprogrammed . | . . . . Reused . | . . . . Traps Extracted . | . . . . Installed . | . . . . Triggered . | . . . . Machines | -11 -10 -10 -10 ---------- Run | Yrd Mat Min Sub Machines Disabled 1 | . 1 . . Max in Single Turn 1 | . 1 . . Machines Repaired . | . . . . Machines Dismantled . | . . . . Machines Sabotaged . | . . . . Overloaded Fab Kills . | . . . . Hacking | -11 -10 -10 -10 --------- Run | Yrd Mat Min Sub Machines Accessed 4 | . 2 1 1 Terminals 2 | . 2 . . Fabricators . | . . . . Repair Stations . | . . . . Recycling Units . | . . . . Scanalyzers . | . . . . Garrison Access . | . . . . Total Hacks 9 | . 4 1 4 Successful 6 | . 1 1 4 Failed 3 | . 3 . . Catastrophic 1 | . 1 . . Database Lockouts . | . . . . Manual 4 | . 4 . . Terminals 4 | . 4 . . Fabricators . | . . . . Repair Stations . | . . . . Recycling Units . | . . . . Scanalyzers . | . . . . Garrison Access . | . . . . Terminal Hacks 5 | . . 1 4 Record 4 | . . . 4 Open Door 1 | . . 1 . Fabricator Hacks . | . . . . Repair Station Hacks . | . . . . Recycling Unit Hacks . | . . . . Scanalyzer . | . . . . Garrison Access Hacks . | . . . . Unauthorized Hacks 1 | . 1 . . Terminals 1 | . 1 . . Botnet 1 | . 1 . . Fabricators . | . . . . Repair Stations . | . . . . Recycling Units . | . . . . Scanalyzers . | . . . . Garrison Access . | . . . . Data Cores Recovered . | . . . . Used . | . . . . Hacking Detections 1 | . 1 . . Full Trace Events . | . . . . Feedback Events . | . . . . Feedback Blocked . | . . . . Robot Schematics Acquired . | . . . . Robots Built . | . . . . Authchips . | . . . . Time . | . . . . Total Robot Build Rating . | . . . . Part Schematics Acquired . | . . . . Parts Built . | . . . . Authchips . | . . . . Time . | . . . . Total Part Build Rating . | . . . . Parts Repaired . | . . . . Time . | . . . . Parts Recycled . | . . . . Recycled Matter . | . . . . Retrieved Matter . | . . . . Retrieved Components . | . . . . Parts Scanalyzed . | . . . . Part Schematics Acquired . | . . . . Parts Damaged . | . . . . Bothacking | -11 -10 -10 -10 ------------ Run | Yrd Mat Min Sub Used RIF Installer . | . . . . Robots Hacked . | . . . . Non-combat . | . . . . Combat . | . . . . Robot Hacks Applied . | . . . . Relay Couplers Released . | . . . . Fabnet Peak Effective % . | . . . . Robots Rewired . | . . . . Allies Hacked . | . . . . Hacks Repelled . | . . . . Allies | -11 -10 -10 -10 -------- Run | Yrd Mat Min Sub Total Allies 3 | . . 3 . Largest Group 3 | . . 3 2 Highest-Rated Group 40 | . . 40 32 Highest-Rated Ally 16 | . . 16 16 Total Orders . | . . . . Ally Attacks 44 | . . 35 9 Total Damage 280 | . . 280 . Kills 8 | . . 8 . Allies Corrupted . | . . . . Allies Melted . | . . . . Intel | -11 -10 -10 -10 ------- Run | Yrd Mat Min Sub Active Infowar (turns) 339 | 39 282 18 . Seismic 339 | 39 282 18 . Robot Analysis Total . | . . . . Derelict Logs Recovered 2 | . . 1 1 Drone Launches . | . . . . Drone Recoveries . | . . . . Exploration | -11 -10 -10 -10 ------------- Run | Yrd Mat Min Sub Turns Passed 2002 | 81 282 561 1078 Spaces Moved 1272 | 52 145 373 702 Core 7 | 7 . . . Treads . | . . . . Legs 1265 | 45 145 373 702 Wheels . | . . . . Hover . | . . . . Flight . | . . . . Fastest Speed 50 | 50 120 120 125 Average Speed 123 | 115 120 124 125 Slowest Speed 130 | 120 120 125 130 Overloaded Moves . | . . . . Propulsion Burnouts . | . . . . Robots Hopped . | . . . . Potential Cave-ins . | . . . . Cave-ins Triggered . | . . . . Exploration Rate (%) 34 | 4 28 67 37 Regions Visited 3 Branch Regions 2 Pre-discovered Areas 1 | . . . 1 Known Exits Taken 1 | . . 1 . Unknown Exits Taken 2 | 1 1 . . Scrap Searched 10 | . . . 10 Spaces Dug . | . . . . Terrain Destroyed 1 | . . . 1 Melee . | . . . . Projectile 1 | . . . 1 AOE . | . . . . Terrain Rammed . | . . . . Walls Destroyed . | . . . . Machines Disabled . | . . . . Actions | -11 -10 -10 -10 --------- Run | Yrd Mat Min Sub Total 1569 | 65 233 444 827 Wait 155 | . 76 31 48 Move 1269 | 51 144 372 702 Hop . | . . . . Pick Up 11 | 4 3 3 1 Fast Attach 16 | 7 . 3 6 Attach 1 | . . . 1 Detach . | . . . . Swap 12 | 1 1 7 3 Drop 16 | . . 10 6 Fire 58 | 2 9 18 29 Melee 31 | . . . 31 Ram . | . . . . Kick . | . . . . Crush . | . . . . Escape Stasis . | . . . . Rewire . | . . . . Trap . | . . . . Miscellaneous . | . . . . Route ------- -11/Scrapyard -10/Materials -10/Mines -10/Subcaves (discovered 2 exits: *Mat / [*Rec]) History --------- Turn | Location | Event 8 | -11/Scrapyard | Discovered new exit (range 14) 82 | -11/Scrapyard | Entered Materials 283 | -10/Materials | Discovered new exit (range 15) 314 | -10/Materials | Build established: Mutant 364 | -10/Materials | Entered Mines 439 | -10/Mines | Assisted by bots powering up and referring to "LRC-V3" 457 | -10/Mines | Assembled infested the area 460 | -10/Mines | Met a Derelict who couldn't figure out how to use a Trap Extractor 462 | -10/Mines | Assisted by a Guerilla fighting off Assembled 533 | -10/Mines | Lost 3 allies 533 | -10/Mines | Learned Materials trap positions 755 | -10/Mines | Found a damaged Exp. Sensor Array with a note attached 861 | -10/Mines | Discovered new exit (range 5) 867 | -10/Mines | Identified exit to Subcaves 925 | -10/Mines | Entered Subcaves 925 | -10/Subcaves | Accompanied by 2 allies 1125 | -10/Subcaves | A swath of the cavern ceiling suddenly collapsed 1160 | -10/Subcaves | Visited Clippyterm 1164 | -10/Subcaves | Learned Factory fabricator intel 1164 | -10/Subcaves | Learned Factory trap positions 1252 | -10/Subcaves | Discovered new exit (range 13) 1285 | -10/Subcaves | Identified exit to Materials 1328 | -10/Subcaves | Learned location of Zion (-6) 1445 | -10/Subcaves | Core integrity fell below 50% 1530 | -10/Subcaves | Core integrity fell below 20% 1909 | -10/Subcaves | Shifting Twisted Machinery released Battle Rifle 1911 | -10/Subcaves | Shifting Twisted Machinery released Battle Rifle 1986 | -10/Subcaves | Discovered new exit (range 10) 2003 | -10/Subcaves | Destroyed by S-10 Pest with Light Assault Rifle Last Messages --------------- Dropped Broken Sub. Power Source. Acquired Sub. Power Source. Acquired 16 matter. Searching scrap... Found Sub. Shrapnel Launcher. Found 67 Matter. Searching scrap... Found Mak. Light Armor Plating. Found 49 Matter. Searching scrap... Found Flamer. Found 51 Matter. QY-IKQ(R) destroyed. X4-5HT(R) destroyed. K6-QF1(R) destroyed. Battle Rifle falls loose from the Twisted Machinery. EXIT=FOUND S-10 Pest springs to life. Destroyed Flight Unit. Map ----- +----------------------------------------------------+ | ?????????????????????????????????????????????????? | | ?????????????????????????????????????????????????? | | ?????????????????????????????????????????????????? | | ?????????????????????????????????????? ??????????? | | ??????????????????????????????????#""""" ????????? | | ?????????????????????????????#####"""" ?????????? | | ????????????????????????????## """ ??????????? | | ????????????????????????????# "" ???????????? | | ????????????????????????????? """""" ???????????? | | ??????????????????????????????# ""#??????????????? | | ???????????????????????? ???## "##??????????????? | | ???????????????????????? ??# ""#??????????????? | | ???????????????????????? ##?## #??????????????? | | ???????????????????????# ???# ##?#####????????? | | ???????????????????????# ??## ####"# ###??????? | | ????????????????????### #??# " #??????? | | ????????????????????# # ##?# # # # #??????? | | ????????????????????# ??# ""#### #??????? | | ????????????????????# #??# " "### #??????? | | ????????????????????# #??##" "### #??????? | | ????????????????????# #???#"" "#### #??????? | | ?????????????????#### #??##""" " ## #####??? | | ?????????????????# #?## # #??? | | ?????????????????# s ### ### ##??? | | ?????????????????# ss ## ! ##### #??? | | ?????????????????# s @ ####=& ### ##??? | | ?????????????????# #### #?##%[* ### #??? | | ??????????????#" ???# ## #?#![&] ## ##??? | | ??????????????# ???# ####### ! ##### ###? | | ??????????????# ???# ##???# ##???# #? | | ??????????????#" ????## #??# ##????## [##? | | ??????????????#" " ?????# #??# ##??????#""#?? | | ??????????????#"""" ????## #??####???????# #?? | | ??????????????#####